bitfinex/quotes_SOLUSD_20241126
["timestamp","ask_amount","ask_price","bid_price","bid_amount"]
[1732615489306,44.30946542,234.51,234.44,44.30946542]
[1732615489517,44.30946542,234.51,234.43,44.30946542]
[1732615489914,44.30946542,234.49,234.41,44.30946542]
[1732615490117,44.30946542,234.46,234.39,44.30946542]
[1732615491029,44.30946542,234.45,234.37,44.30946542]
[1732615491219,44.30946542,234.41,234.34,44.30946542]
[1732615491529,6.5724,234.4,234.33,44.30946542]
[1732615491829,6.5724,234.4,234.32,44.30946542]
[1732615491830,44.30946542,234.39,234.32,44.30946542]
[1732615492035,6.5724,234.4,234.33,44.30946542]
[1732615492319,50.88186542,234.4,234.32,44.30946542]
[1732615492523,6.5724,234.4,234.33,44.30946542]
[1732615493034,6.5724,234.4,234.38,44.30946542]
[1732615493236,6.5724,234.4,234.36,44.30946542]
[1732615493613,6.5724,234.4,234.34,44.30946542]
[1732615493820,50.88186542,234.4,234.27,20.0]
[1732615494019,6.5724,234.4,234.34,44.30946542]
[1732615494818,50.88186542,234.4,234.32,44.30946542]
[1732615495115,44.30946542,234.39,234.31,44.30946542]
[1732615495315,44.30946542,234.39,234.17,6.44369928]
[1732615495316,44.30946542,234.34,234.26,44.30946542]
[1732615495515,10.0711,234.4,234.15,0.5080345]
[1732615495516,44.30946542,234.27,234.15,0.5080345]
[1732615495717,15.6032,234.32,234.18,44.30946542]
[1732615496123,44.30946542,234.24,234.16,44.30946542]
[1732615496437,20.0,234.29,234.15,0.5080345]
[1732615496438,44.30946542,234.2,234.15,0.5080345]
[1732615496618,44.30946542,234.19,234.15,0.5080345]
[1732615496810,44.30946542,234.21,234.15,0.5080345]
[1732615497015,20.0,234.23,234.17,44.30946542]
[1732615497218,20.0,234.23,234.16,44.30946542]
[1732615497433,20.0,234.23,234.17,44.30946542]
[1732615497631,44.30946542,234.26,234.18,44.30946542]
[1732615497820,4.2685,234.27,234.15,4.7786345]
[1732615498025,44.30946542,234.25,234.17,44.30946542]
[1732615498231,44.30946542,234.25,234.18,44.30946542]
[1732615498423,49.67546542,234.27,234.2,44.30946542]
[1732615498831,44.30946542,234.26,234.19,44.30946542]
[1732615499236,5.366,234.27,234.23,44.30946542]
[1732615499433,5.366,234.27,234.22,44.30946542]
[1732615499635,49.67546542,234.27,234.2,44.30946542]
[1732615500034,5.366,234.27,234.21,44.30946542]
[1732615500538,44.30946542,234.26,234.19,44.30946542]
[1732615500740,44.30946542,234.24,234.17,44.30946542]
[1732615501147,44.30946542,234.26,234.19,44.30946542]
[1732615501525,5.366,234.27,234.15,0.5080345]
[1732615502338,20.0,234.24,234.15,0.5080345]
[1732615502543,44.30946542,234.18,234.15,0.5080345]
[1732615503027,44.30946542,234.17,234.15,0.5080345]
[1732615503242,44.30946542,234.16,234.15,0.5080345]
[1732615503442,44.30946542,234.17,234.15,0.5080345]
[1732615503635,44.30946542,234.16,234.15,0.5080345]
[1732615504432,44.30946542,234.19,234.15,0.5080345]
[1732615504750,44.30946542,234.2,234.15,0.5080345]
[1732615504951,44.30946542,234.19,234.15,0.5080345]
[1732615505141,44.30946542,234.16,234.15,0.5080345]
[1732615505854,44.30946542,234.16,234.06,44.30946542]
[1732615505855,74.47394942,234.16,234.03,44.30946542]
[1732615506047,44.30946542,234.09,234.02,60.68203808]
[1732615506623,44.30946542,234.12,234.06,44.30946542]
[1732615506854,44.30946542,234.14,234.06,44.30946542]
[1732615507139,44.30946542,234.11,234.04,44.30946542]
[1732615507346,44.30946542,234.11,234.02,12.09957266]
[1732615507347,44.30946542,234.11,234.03,44.30946542]
[1732615507626,44.30946542,234.13,234.06,44.30946542]
[1732615507834,44.30946542,234.1,234.03,44.30946542]
[1732615508040,44.30946542,234.14,234.07,44.30946542]
[1732615508453,20.0,234.13,234.02,16.37257266]
[1732615509028,10.6582,234.16,234.02,16.37257266]
[1732615509228,10.6571,234.22,234.06,20.0]
[1732615509454,15.6032,234.25,234.18,27.34846336]
[1732615509751,15.6032,234.25,234.2,27.34846336]
[1732615509951,6.3876,234.28,234.23,27.34846336]
[1732615510128,6.3876,234.28,234.12,27.34846336]
[1732615510129,6.3876,234.35,234.15,20.0]
[1732615510460,6.3876,234.41,234.24,5.0]
[1732615510751,15.6032,234.5,234.29,23.776884]
[1732615510752,0.97519648,234.4,234.29,23.776884]
[1732615510953,0.97519648,234.4,234.32,20.0]
[1732615511263,0.97519648,234.4,234.34,27.34846336]
[1732615511442,0.97519648,234.4,234.39,27.34846336]
[1732615511949,0.97519648,234.4,234.31,23.776884]
[1732615512426,0.97519648,234.4,234.36,44.33118499]
[1732615512852,0.97519648,234.4,234.38,44.33118499]
[1732615513027,0.97519648,234.4,234.35,44.33118499]
[1732615513233,0.97519648,234.4,234.24,60.56358499]
[1732615513234,0.97519648,234.4,234.34,44.33118499]
[1732615513447,45.30638147,234.4,234.33,44.33118499]
[1732615514056,44.33118499,234.36,234.29,44.33118499]
[1732615514250,44.33118499,234.34,234.27,44.33118499]
[1732615514454,44.33118499,234.32,234.25,44.33118499]
[1732615514656,44.33118499,234.35,234.28,44.33118499]
[1732615514959,44.33118499,234.37,234.3,44.33118499]
[1732615515151,44.33118499,234.37,234.18,0.64020294]
[1732615515152,20.0,234.41,234.19,10.0]
[1732615515356,20.0,234.41,234.35,44.33118499]
[1732615515535,20.0,234.41,234.33,44.33118499]
[1732615515536,64.33118499,234.41,234.33,44.33118499]
[1732615518348,20.0,234.35,234.13,0.64031792]
[1732615518972,24.2671,234.35,234.14,5.0]
[1732615519142,24.2671,234.35,234.25,44.33118499]
[1732615519143,44.33118499,234.32,234.25,44.33118499]
[1732615519342,44.33118499,234.37,234.3,44.33118499]
[1732615519545,44.33118499,234.35,234.28,44.33118499]
[1732615519745,44.33118499,234.3,234.22,44.33118499]
[1732615520041,44.33118499,234.31,234.13,0.12549]
[1732615520549,44.33118499,234.28,234.21,44.33118499]
[1732615520747,44.33118499,234.27,234.19,44.33118499]
[1732615520963,44.33118499,234.26,234.18,44.33118499]
[1732615521149,44.33118499,234.23,234.16,44.33118499]
[1732615521467,44.33118499,234.24,234.16,44.33118499]
[1732615521663,44.33118499,234.22,234.15,44.33118499]
[1732615521965,44.33118499,234.16,234.01,17.094089]
[1732615522265,43.776884,234.18,233.96,15.9026]
[1732615522473,23.776884,234.16,233.96,15.9026]
[1732615522837,4.27,234.19,233.97,0.64084996]
[1732615523041,44.33118499,234.15,234.08,44.33118499]
[1732615523242,44.33118499,234.14,234.07,44.33118499]
[1732615523467,44.33118499,234.11,234.03,44.33118499]
[1732615524345,44.33118499,234.08,234.0,44.33118499]
[1732615524546,44.33118499,234.02,233.95,48.60548499]
[1732615524753,44.33118499,234.0,233.93,48.60578499]
[1732615524954,6.5857,234.08,233.93,4.2746]
[1732615525463,24.2713,234.12,233.94,0.64089618]
[1732615525654,24.2713,234.12,233.93,4.2746]
[1732615526054,24.2713,234.12,234.02,44.33118499]
[1732615526055,44.33118499,234.09,234.02,44.33118499]
[1732615526442,44.33118499,234.05,233.98,44.33118499]
[1732615526769,4.2719,234.09,233.97,4.2738]
[1732615526770,44.33118499,234.06,233.99,44.33118499]
[1732615526947,44.33118499,234.02,233.95,48.60548499]
[1732615527150,4.2719,234.09,233.95,48.60548499]
[1732615527151,14.2719,234.09,233.95,0.97700973]
[1732615527385,20.0,234.05,233.95,0.97700973]
[1732615527669,44.33118499,233.99,233.95,0.97700973]
[1732615527870,44.33118499,233.98,233.95,0.97700973]
[1732615528045,44.33118499,233.96,233.92,0.5080345]
[1732615528252,44.33118499,233.97,233.92,0.5080345]
[1732615528453,44.33118499,233.95,233.92,0.5080345]
[1732615528756,44.33118499,233.96,233.92,0.5080345]
[1732615528964,44.33118499,233.98,233.92,0.5080345]
[1732615529146,44.33118499,233.99,233.92,49.11401949]
[1732615529344,44.33118499,233.98,233.92,0.5080345]
[1732615530280,44.33118499,233.97,233.92,0.5080345]
[1732615530455,44.33118499,233.95,233.92,0.5080345]
[1732615530656,44.33118499,233.99,233.92,44.83921949]
[1732615530967,44.33118499,234.01,233.94,44.33118499]
[1732615531271,160.63118499,234.04,233.96,44.33118499]
[1732615531478,4.2723,234.07,233.92,4.7828345]
[1732615531773,4.2723,234.07,233.93,23.776884]
[1732615532358,44.33118499,234.05,233.98,44.33118499]
[1732615532665,44.33118499,234.06,233.98,44.33118499]
[1732615532857,44.33118499,234.0,233.92,49.11411949]
[1732615533063,44.33118499,233.98,233.92,4.7829345]
[1732615533567,44.33118499,233.99,233.92,49.11411949]
[1732615533777,44.33118499,234.03,233.96,44.33118499]
[1732615533982,44.33118499,234.0,233.93,44.33118499]
[1732615534154,44.33118499,233.99,233.92,4.7829345]
[1732615534475,20.0,234.01,233.92,0.5080345]
[1732615534680,20.0,234.0,233.92,0.5080345]
[1732615535565,44.33118499,233.98,233.92,0.5080345]
[1732615535775,44.33118499,233.95,233.92,0.5080345]
[1732615536081,44.33118499,233.97,233.92,0.5080345]
[1732615536779,44.33118499,233.99,233.92,44.83921949]
[1732615536988,44.33118499,234.02,233.95,44.33118499]
[1732615537151,44.33118499,234.03,233.96,44.33118499]
[1732615537353,4.2726,234.05,233.92,4.7828345]
[1732615537354,44.33118499,234.02,233.95,44.33118499]
[1732615537678,4.2726,234.05,233.92,4.7828345]
[1732615537973,44.33118499,234.0,233.93,44.33118499]
[1732615538171,44.33118499,233.97,233.92,0.5080345]
[1732615538383,27.38603953,233.98,233.92,0.5080345]
[1732615538756,27.38603953,233.99,233.92,0.5080345]
[1732615539286,27.38603953,233.98,233.92,0.5080345]
[1732615539578,27.38603953,233.94,233.92,0.5080345]
[1732615539761,27.38603953,233.93,233.92,0.5080345]
[1732615540984,51.16292353,233.93,233.92,0.5080345]
[1732615541578,55.43762353,233.93,233.92,0.5080345]
[1732615543387,31.66073953,233.93,233.92,0.5080345]
[1732615544272,55.43762353,233.93,233.92,0.5080345]
[1732615544469,20.0,233.89,233.76,4.2778]
[1732615544671,27.38603953,233.8,233.74,4.2782]
[1732615544854,27.38603953,233.79,233.74,4.2782]
[1732615545054,27.38603953,233.88,233.74,4.2782]
[1732615545055,27.38603953,233.88,233.75,27.38603953]
[1732615545277,4.276,233.86,233.75,27.38603953]
[1732615545465,4.276,233.86,233.74,4.2782]
[1732615546280,27.38603953,233.83,233.76,27.38603953]
[1732615546781,27.38603953,233.82,233.75,31.66403953]
[1732615547467,27.38603953,233.83,233.76,27.38603953]
[1732615547664,27.38603953,233.79,233.71,31.66473953]
[1732615547877,27.38603953,233.78,233.71,31.66473953]
[1732615548086,27.38603953,233.77,233.71,4.2787]
[1732615548289,10.3488,233.86,233.73,27.38603953]
[1732615548290,27.38603953,233.8,233.73,27.38603953]
[1732615548994,27.38603953,233.75,233.69,4.2791]
[1732615549283,27.38603953,233.73,233.68,0.5080345]
[1732615549922,27.38603953,233.72,233.68,0.5080345]
[1732615550279,27.38603953,233.71,233.68,0.5080345]
[1732615550768,27.38603953,233.74,233.68,0.5080345]
[1732615550967,26.3812,233.85,233.72,27.38603953]
[1732615550968,20.0,233.75,233.72,27.38603953]
[1732615551358,20.0,233.75,233.7,27.38603953]
[1732615551781,27.38603953,233.79,233.72,27.38603953]
[1732615551997,27.38603953,233.81,233.74,27.38603953]
[1732615552291,27.38603953,233.86,233.79,27.38603953]
[1732615552491,27.38603953,233.86,233.79,31.66333953]
[1732615552686,4.2758,233.88,233.81,27.38603953]
[1732615552687,27.38603953,233.88,233.81,27.38603953]
[1732615552879,27.38603953,233.87,233.8,27.38603953]
[1732615553392,27.38603953,233.87,233.79,4.2773]
[1732615553393,27.38603953,233.88,233.81,27.38603953]
[1732615553997,27.38603953,233.86,233.72,15.3921]
[1732615554201,27.38603953,233.83,233.76,27.38603953]
[1732615554487,27.38603953,233.83,233.75,27.38603953]
[1732615555385,27.38603953,233.86,233.79,27.38603953]
[1732615555587,27.38603953,233.9,233.83,27.38603953]
[1732615555793,47.38603953,233.87,233.8,27.38603953]
[1732615556091,47.38603953,233.87,233.75,6.0825]
[1732615556273,20.0,233.89,233.79,27.38603953]
[1732615556473,20.0,233.89,233.8,27.38603953]
[1732615556693,27.38603953,233.89,233.81,31.66293953]
[1732615556902,27.38603953,233.87,233.81,4.2769]
[1732615557076,27.38603953,233.86,233.79,27.38603953]
[1732615557271,27.38603953,233.89,233.81,27.38603953]
[1732615557488,27.38603953,233.86,233.79,27.38603953]
[1732615557786,27.38603953,233.87,233.8,27.38603953]
[1732615557989,27.38603953,233.86,233.79,27.38603953]
[1732615558185,27.38603953,233.87,233.8,27.38603953]
[1732615558498,27.38603953,233.86,233.79,27.38603953]
[1732615558791,27.38603953,233.87,233.8,27.38603953]
[1732615559099,27.38603953,233.88,233.81,27.38603953]
[1732615559277,27.38603953,233.89,233.82,27.38603953]
[1732615559591,27.38603953,233.88,233.8,27.38603953]
[1732615559791,27.38603953,233.88,233.81,27.38603953]
[1732615560178,27.38603953,233.9,233.82,27.38603953]
[1732615560384,27.38603953,233.88,233.78,4.2775]
[1732615560573,27.38603953,233.82,233.78,4.2775]
[1732615560775,20.0,233.9,233.78,4.2775]
[1732615561185,20.0,233.9,233.76,4.2777]
[1732615561391,23.776884,233.89,233.75,10.3605]
[1732615561901,27.38603953,233.82,233.75,37.74653953]
[1732615562075,27.38603953,233.81,233.75,10.3605]
[1732615562277,27.38603953,233.78,233.7,27.38603953]
[1732615562477,27.38603953,233.73,233.68,0.5080345]
[1732615562688,27.38603953,233.72,233.68,0.5080345]
[1732615563100,20.0,233.81,233.68,4.7873345]
[1732615563292,27.38603953,233.76,233.69,27.38603953]
[1732615563490,27.38603953,233.77,233.69,27.38603953]
[1732615563700,27.38603953,233.7,233.68,0.5080345]
[1732615563994,20.0,233.69,233.68,0.5080345]
[1732615564203,20.0,233.69,233.52,4.2822]
[1732615564372,27.38603953,233.63,233.56,27.38603953]
[1732615564583,20.0,233.68,233.6,27.38603953]
[1732615564777,27.38603953,233.68,233.61,27.38603953]
[1732615565196,27.38603953,233.71,233.63,27.38603953]
[1732615565402,27.38603953,233.76,233.62,27.38603953]
[1732615565597,27.38603953,233.71,233.64,27.38603953]
[1732615565772,27.38603953,233.73,233.66,27.38603953]
[1732615565977,27.38603953,233.72,233.55,0.64193134]
[1732615566201,27.38603953,233.7,233.55,23.776884]
[1732615566397,31.66463953,233.72,233.65,27.38603953]
[1732615566598,27.38603953,233.73,233.66,27.38603953]
[1732615566800,27.38603953,233.71,233.64,27.38603953]
[1732615566979,4.2785,233.73,233.6,27.38603953]
[1732615567296,23.776884,233.69,233.51,4.2824]
[1732615567502,20.0,233.66,233.51,4.2824]
[1732615568099,23.776884,233.69,233.51,4.2824]
[1732615568398,27.38603953,233.6,233.53,27.38603953]
[1732615568604,27.38603953,233.61,233.54,27.38603953]
[1732615568806,27.38603953,233.62,233.55,27.38603953]
[1732615569281,27.38603953,233.6,233.53,27.38603953]
[1732615569484,27.38603953,233.58,233.5,33.46853953]
[1732615569680,27.38603953,233.54,233.47,27.38603953]
[1732615569919,27.38603953,233.52,233.45,10.8740345]
[1732615570090,27.38603953,233.52,233.45,4.7915345]
[1732615570403,20.0,233.52,233.45,0.5080345]
[1732615571183,23.776884,233.51,233.45,0.5080345]
[1732615571510,44.68107834,233.46,233.45,0.5080345]
[1732615572597,68.45796234,233.46,233.45,0.5080345]
[1732615572904,48.96427834,233.47,233.45,0.5080345]
[1732615573110,4.2832,233.47,233.45,0.5080345]
[1732615573294,24.2832,233.47,233.45,0.5080345]
[1732615573793,20.0,233.46,233.45,0.5080345]
[1732615574108,88.45796234,233.46,233.45,0.5080345]
[1732615574408,93.72075389,233.46,233.45,0.5080345]
[1732615574613,88.45796234,233.46,233.45,0.5080345]
[1732615574990,64.68107834,233.46,233.45,0.5080345]
[1732615575292,20.0,233.46,233.45,0.5080345]
[1732615575609,64.68107834,233.46,233.45,0.5080345]
[1732615575801,44.68107834,233.46,233.45,0.5080345]
[1732615577107,68.45796234,233.46,233.45,0.5080345]
[1732615577401,19.9924,233.45,233.27,60.07317834]
[1732615577711,20.0,233.42,233.27,15.3921]
[1732615577915,44.68107834,233.37,233.27,19.6789]
[1732615578099,20.0,233.36,233.32,44.68107834]
[1732615578306,20.0,233.36,233.27,19.6789]
[1732615578307,20.0,233.36,233.3,44.68107834]
[1732615578613,20.0,233.36,233.32,44.68107834]
[1732615578916,20.0,233.36,233.31,44.68107834]
[1732615579416,44.68107834,233.36,233.28,44.68107834]
[1732615579617,44.68107834,233.34,233.27,60.07317834]
[1732615579944,44.68107834,233.32,233.25,50.76357834]
[1732615580107,44.68107834,233.32,233.25,44.68107834]
[1732615580310,44.68107834,233.31,233.23,44.68107834]
[1732615580506,44.68107834,233.29,233.22,45.18911284]
[1732615580713,4.2851,233.37,233.22,0.5080345]
[1732615580714,44.68107834,233.26,233.22,0.5080345]
[1732615581012,44.68107834,233.28,233.22,0.5080345]
[1732615581609,44.68107834,233.27,233.22,0.5080345]
[1732615582211,44.68107834,233.28,233.22,0.5080345]
[1732615582792,44.68107834,233.24,233.22,0.5080345]
[1732615583109,44.68107834,233.23,233.22,0.5080345]
[1732615583611,48.96867834,233.23,233.22,0.5080345]
[1732615584412,4.2873,233.25,233.22,0.5080345]
[1732615584591,5.71491401,233.33,233.22,0.5080345]
[1732615584592,20.0,233.28,233.22,0.5080345]
[1732615585515,20.0,233.24,233.22,0.5080345]
[1732615585901,44.68107834,233.23,233.22,0.5080345]
[1732615586613,64.68107834,233.24,233.22,0.5080345]
[1732615586923,44.68107834,233.23,233.22,0.5080345]
[1732615587615,48.96867834,233.23,233.22,0.5080345]
[1732615588314,20.0,233.27,233.22,0.5080345]
[1732615588522,4.2865,233.29,233.22,0.5080345]
[1732615589022,4.2854,233.35,233.22,20.2676345]
[1732615589399,44.68107834,233.32,233.25,44.68107834]
[1732615589624,44.68107834,233.3,233.22,60.66111284]
[1732615589822,44.68107834,233.32,233.24,44.68107834]
[1732615590523,44.68107834,233.34,233.27,44.68107834]
[1732615590815,44.68107834,233.31,233.23,44.68107834]
[1732615591024,44.68107834,233.28,233.22,15.9800345]
[1732615591207,44.68107834,233.23,233.22,0.5080345]
[1732615591611,5.26279155,233.34,233.22,0.5080345]
[1732615591612,10.7158,233.3,233.22,0.5080345]
[1732615591812,44.68107834,233.25,233.22,0.5080345]
[1732615592017,44.68107834,233.26,233.22,0.5080345]
[1732615592231,44.68107834,233.25,233.22,0.5080345]
[1732615592436,44.68107834,233.27,233.22,0.5080345]
[1732615592601,44.68107834,233.28,233.22,0.5080345]
[1732615592918,44.68107834,233.23,233.22,0.5080345]
[1732615593716,48.96867834,233.23,233.22,0.5080345]
[1732615594526,31.85375091,233.23,233.22,0.5080345]
[1732615595105,31.85345091,233.25,233.22,0.5080345]
[1732615595519,27.56615091,233.23,233.22,0.5080345]
[1732615596519,27.56615091,233.23,233.08,47.18845091]
[1732615596520,15.0071,233.22,233.08,15.3321]
[1732615596827,27.56615091,233.14,233.06,27.56615091]
[1732615597327,27.56615091,233.14,233.07,27.56615091]
[1732615597708,27.56615091,233.16,233.08,4.2903]
[1732615597908,27.56615091,233.2,233.12,27.56615091]
[1732615598125,27.56615091,233.28,233.08,4.2903]
[1732615598126,27.56615091,233.22,233.14,27.56615091]
[1732615598626,27.56615091,233.22,233.15,27.56615091]
[1732615598841,27.56615091,233.23,233.15,27.56615091]
[1732615599524,27.56615091,233.23,233.15,31.85515091]
[1732615599911,31.85375091,233.23,233.15,31.85515091]
[1732615600221,27.56615091,233.25,233.18,27.56615091]
[1732615600831,27.56615091,233.26,233.18,27.56615091]
[1732615601241,27.56615091,233.31,233.24,27.56615091]
[1732615601447,27.56615091,233.37,233.3,27.56615091]
[1732615601614,4.2839,233.43,233.24,23.776884]
[1732615601814,14.9937,233.43,233.24,23.776884]
[1732615602037,14.9937,233.43,233.2,23.776884]
[1732615602338,14.9937,233.43,233.23,20.0]
[1732615602511,5.26279155,233.42,233.19,23.776884]
[1732615602719,27.56615091,233.3,233.22,27.56615091]
[1732615602933,27.56615091,233.28,233.21,27.56615091]
[1732615603132,27.56615091,233.27,233.19,27.56615091]
[1732615603343,27.56615091,233.25,233.17,27.56615091]
[1732615603509,27.56615091,233.27,233.2,27.56615091]
[1732615603914,27.56615091,233.29,233.21,27.56615091]
[1732615604433,27.56615091,233.27,233.19,27.56615091]
[1732615604737,27.56615091,233.27,233.21,27.56615091]
[1732615605320,27.56615091,233.29,233.22,27.56615091]
[1732615605532,27.56615091,233.29,233.21,31.85405091]
[1732615605835,27.56615091,233.31,233.23,27.56615091]
[1732615606031,27.56615091,233.33,233.25,27.56615091]
[1732615606548,27.56615091,233.31,233.23,27.56615091]
[1732615607215,27.56615091,233.27,233.22,4.2877]
[1732615607532,27.56615091,233.32,233.24,27.56615091]
[1732615608232,27.56615091,233.36,233.29,27.56615091]
[1732615608530,27.56615091,233.38,233.3,27.56615091]
[1732615608734,4.2848,233.38,233.22,4.2877]
[1732615609119,27.56615091,233.33,233.22,4.2877]
[1732615609346,27.56615091,233.37,233.24,25.0]
[1732615609521,21.2855,233.44,233.24,25.0]
[1732615609522,27.56615091,233.39,233.31,27.56615091]
[1732615609973,27.56615091,233.39,233.32,27.56615091]
[1732615610145,27.56615091,233.39,233.27,5.0]
[1732615610146,27.56615091,233.44,233.37,27.56615091]
[1732615610348,27.56615091,233.47,233.4,27.56615091]
[1732615610521,4.2828,233.49,233.42,27.56615091]
[1732615610522,27.56615091,233.49,233.42,27.56615091]
[1732615610720,27.56615091,233.48,233.41,27.56615091]
[1732615611025,4.2817,233.55,233.33,5.0]
[1732615611026,116.3,233.54,233.33,5.0]
[1732615611229,14.986,233.55,233.32,4.2859]
[1732615611419,5.26279155,233.54,233.33,23.776884]
[1732615611820,20.0,233.51,233.32,24.2859]
[1732615612021,27.56615091,233.42,233.34,27.56615091]
[1732615612246,20.0,233.51,233.39,27.56615091]
[1732615612247,27.56615091,233.46,233.39,27.56615091]
[1732615612624,27.56615091,233.41,233.34,31.85165091]
[1732615612823,27.56615091,233.4,233.32,51.85195091]
[1732615613049,20.0,233.49,233.35,27.56615091]
[1732615613251,4.2826,233.5,233.41,27.56615091]
[1732615613421,4.2817,233.55,233.35,23.776884]
[1732615613839,9.54449155,233.55,233.34,5.0]
[1732615614144,4.2817,233.55,233.35,20.0]
[1732615614547,27.56615091,233.47,233.39,27.56615091]
[1732615614721,20.0,233.53,233.35,20.0]
[1732615614722,27.56615091,233.43,233.36,4.2852]
[1732615615042,27.56615091,233.47,233.39,27.56615091]
[1732615615226,27.56615091,233.46,233.39,27.56615091]
[1732615615425,27.56615091,233.46,233.36,4.2852]
[1732615615632,27.56615091,233.45,233.37,27.56615091]
[1732615615947,27.56615091,233.45,233.37,31.85105091]
[1732615616637,27.56615091,233.44,233.37,31.85105091]
[1732615616964,27.56615091,233.42,233.35,31.85145091]
[1732615617136,27.56615091,233.45,233.37,27.56615091]
[1732615618042,27.56615091,233.45,233.37,31.85105091]
[1732615618348,27.56615091,233.44,233.37,31.85105091]
[1732615618925,27.56615091,233.47,233.39,27.56615091]
[1732615619627,27.56615091,233.46,233.39,27.56615091]
[1732615620123,27.56615091,233.45,233.38,27.56615091]
[1732615620321,27.56615091,233.47,233.39,27.56615091]
[1732615620547,27.56615091,233.46,233.39,27.56615091]
[1732615620848,27.56615091,233.47,233.4,27.56615091]
[1732615621055,31.21874468,233.61,233.31,22.149641]
[1732615621056,116.3,233.61,233.39,23.776884]
[1732615621343,26.3997,233.65,233.39,23.776884]
[1732615621344,27.56615091,233.55,233.48,27.56615091]
[1732615621563,27.56615091,233.57,233.5,27.56615091]
[1732615621752,27.56615091,233.54,233.47,27.56615091]
[1732615622430,27.56615091,233.55,233.48,27.56615091]
[1732615622642,5.5577533,233.58,233.5,27.56615091]
[1732615622848,5.5577533,233.58,233.57,27.56615091]
[1732615623024,4.2788,233.71,233.57,27.56615091]
[1732615623338,4.2788,233.71,233.55,22.741]
[1732615623541,4.2788,233.71,233.61,27.56615091]
[1732615623737,27.56615091,233.65,233.58,27.56615091]
[1732615623939,27.56615091,233.66,233.59,27.56615091]
[1732615624141,4.2786,233.72,233.56,4.2815]
[1732615624652,14.9751,233.72,233.54,4.2819]
[1732615625022,20.0,233.69,233.5,4.2826]
[1732615625227,20.0,233.69,233.5,9.2826]
[1732615625525,27.56615091,233.66,233.59,27.56615091]
[1732615625730,27.56615091,233.69,233.62,27.56615091]
[1732615626029,27.56615091,233.78,233.68,27.56615091]
[1732615626224,0.5080345,233.8,233.66,20.0]
[1732615626550,4.7852345,233.8,233.72,27.56615091]
[1732615626754,27.56615091,233.77,233.69,27.56615091]
[1732615627050,27.56615091,233.76,233.69,27.56615091]
[1732615627348,28.07418541,233.8,233.73,27.56615091]
[1732615627526,0.5080345,233.8,233.75,27.56615091]
[1732615627726,0.5080345,233.8,233.68,5.0]
[1732615627727,4.7852345,233.8,233.66,20.0]
[1732615627946,4.7852345,233.8,233.66,24.2796]
[1732615628526,27.56615091,233.75,233.67,27.56615091]
[1732615628733,27.56615091,233.75,233.66,47.56615091]
[1732615628939,27.56615091,233.68,233.6,27.56615091]
[1732615629241,4.7852345,233.8,233.63,5.0]
[1732615629563,0.5080345,233.8,233.65,5.0]
[1732615629742,0.5080345,233.8,233.65,5.6416638]
[1732615630063,0.5080345,233.8,233.7,5.0]
[1732615630266,0.5080345,233.8,233.75,27.56615091]
[1732615630966,0.5080345,233.8,233.69,20.0]
[1732615630967,0.5080345,233.8,233.77,27.56615091]
[1732615631141,0.5080345,233.8,233.79,27.56615091]
[1732615631568,0.5080345,233.8,233.77,27.56615091]
[1732615631742,6.2471,233.92,233.73,27.56615091]
[1732615631743,27.56615091,233.81,233.73,27.56615091]
[1732615631943,27.56615091,233.84,233.76,27.56615091]
[1732615632245,27.56615091,233.85,233.79,53.17140924]
[1732615632637,27.56615091,233.86,233.8,53.17140924]
[1732615632855,6.2471,233.92,233.8,53.17140924]
[1732615632856,27.56615091,233.87,233.8,53.17140924]
[1732615633058,27.56615091,233.84,233.8,53.17140924]
[1732615633563,27.56615091,233.84,233.76,92.36707972]
[1732615633939,14.9629,233.91,233.76,64.80092881]
[1732615634137,14.9629,233.91,233.71,22.741]
[1732615634138,27.56615091,233.81,233.74,27.56615091]
[1732615634343,27.56615091,233.84,233.76,27.56615091]
[1732615634766,27.56615091,233.83,233.76,27.56615091]
[1732615635240,27.56615091,233.82,233.74,27.56615091]
[1732615635441,27.56615091,233.8,233.73,47.56615091]
[1732615635639,4.276,233.86,233.73,20.0]
[1732615635839,23.776884,233.85,233.73,20.0]
[1732615636060,23.776884,233.85,233.72,20.0]
[1732615636247,23.776884,233.85,233.77,52.60107767]
[1732615636645,23.776884,233.81,233.77,52.60107767]
[1732615636847,27.56615091,233.78,233.74,52.60107767]
[1732615637159,23.776884,233.81,233.74,80.16722858]
[1732615637345,27.56615091,233.84,233.77,27.56615091]
[1732615637543,27.56615091,233.85,233.78,27.56615091]
[1732615637858,27.56615091,233.88,233.81,27.56615091]
[1732615638274,27.56615091,233.87,233.79,27.56615091]
[1732615638836,27.56615091,233.88,233.81,27.56615091]
[1732615639056,27.56615091,233.91,233.84,27.56615091]
[1732615639255,4.2748,233.93,233.84,27.56615091]